fUST/lending_fUST_20250426
["ID","MTS","AMOUNT","RATE_DAILY","PERIOD"]
[359049800,1745675439281,-400.0,0.00016712,2]
[359049802,1745675439291,-400.0,0.00016712,2]
[359049804,1745675439300,-1240.64,0.00016712,2]
[359049805,1745675439310,-739.18,0.00016712,2]
[359049808,1745675439321,-671.19,0.00016712,2]
[359049809,1745675439331,-485.0,0.00016712,2]
[359049811,1745675439341,-400.0,0.00016712,2]
[359049813,1745675439351,-400.0,0.00016712,2]
[359049815,1745675439362,-817.32,0.00016712,2]
[359049818,1745675439374,-611.15,0.00016712,2]
[359049820,1745675439383,-400.0,0.00016712,2]
[359049822,1745675439392,-400.0,0.00016712,2]
[359049823,1745675439402,-850.61,0.00016712,2]
[359049826,1745675439414,-400.0,0.00016712,2]
[359049827,1745675439424,-400.0,0.00016712,2]
[359049829,1745675439434,-400.0,0.00016712,2]
[359049832,1745675439444,-782.46,0.00016712,2]
[359049834,1745675439454,-832.79,0.00016712,2]
[359049836,1745675439464,-400.0,0.00016712,2]
[359049838,1745675439475,-400.0,0.00016712,2]
[359049839,1745675439485,-420.0,0.00016712,2]
[359049841,1745675439495,-622.45,0.00016712,2]
[359049844,1745675439505,-400.0,0.00016712,2]
[359049846,1745675439515,-807.25,0.00016712,2]
[359049848,1745675439525,-627.4,0.00016712,2]
[359049850,1745675439534,-160.0,0.00016853,2]
[359049852,1745675439543,-160.0,0.00016853,2]
[359049854,1745675439553,-208.64182819,0.00016886,2]
[359049856,1745675439562,-2560.58915152,0.000169,2]
[359049858,1745675439572,-151.0,0.00016986,2]
[359049860,1745675439581,-520.58,0.00016986,2]
[359049862,1745675439591,-400.0,0.00016986,2]
[359049864,1745675439600,-400.0,0.00016986,2]
[359049866,1745675439611,-400.0,0.00016986,2]
[359049868,1745675439621,-606.47,0.00016986,2]
[359049870,1745675439630,-400.0,0.00016986,2]
[359049872,1745675439640,-412.74,0.00016986,2]
[359049874,1745675439649,-400.0,0.00016986,2]
[359049876,1745675439660,-400.0,0.00016986,2]
[359049877,1745675439670,-400.0,0.00016986,2]
[359049879,1745675439680,-400.0,0.00016986,2]
[359049881,1745675439690,-816.85,0.00016986,2]
[359049883,1745675439702,-1127.57,0.00016986,2]
[359049886,1745675439712,-717.2,0.00016986,2]
[359049888,1745675439723,-400.0,0.00016986,2]
[359049890,1745675439734,-400.0,0.00016986,2]
[359049892,1745675439744,-400.0,0.00016986,2]
[359049894,1745675439754,-1977.92,0.00016986,2]
[359049896,1745675439763,-459.96,0.00016986,2]
[359049898,1745675439772,-419.22,0.00016986,2]
[359049900,1745675439782,-200.0,0.00016986,2]
[359049902,1745675439793,-426.74,0.00016986,2]
[359049904,1745675439803,-200.0,0.00016986,2]
[359049906,1745675439813,-400.0,0.00016986,2]
[359049908,1745675439823,-400.0,0.00016986,2]
[359049910,1745675439832,-1240.64,0.00016986,2]
[359049912,1745675439842,-739.18,0.00016986,2]
[359049914,1745675439851,-671.19,0.00016986,2]
[359049916,1745675439862,-485.0,0.00016986,2]
[359049918,1745675439871,-400.0,0.00016986,2]
[359049920,1745675439881,-400.0,0.00016986,2]
[359049922,1745675439890,-817.32,0.00016986,2]
[359049924,1745675439902,-611.15,0.00016986,2]
[359049926,1745675439911,-400.0,0.00016986,2]
[359049928,1745675439921,-400.0,0.00016986,2]
[359049930,1745675439931,-850.61,0.00016986,2]
[359049933,1745675439940,-400.0,0.00016986,2]
[359049935,1745675439950,-400.0,0.00016986,2]
[359049937,1745675439960,-400.0,0.00016986,2]
[359049939,1745675439969,-782.46,0.00016986,2]
[359049941,1745675439979,-832.79,0.00016986,2]
[359049943,1745675439988,-400.0,0.00016986,2]
[359049945,1745675439998,-400.0,0.00016986,2]
[359049947,1745675440008,-622.45,0.00016986,2]
[359049949,1745675440017,-400.0,0.00016986,2]
[359049951,1745675440026,-807.25,0.00016986,2]
[359049952,1745675440037,-627.4,0.00016986,2]
[359049953,1745675440046,-151.0,0.00017,2]
[359049954,1745675440056,-520.58,0.0001726,2]
[359049955,1745675440065,-400.0,0.0001726,2]
[359049956,1745675440075,-400.0,0.0001726,2]
[359049957,1745675440084,-400.0,0.0001726,2]
[359049958,1745675440094,-606.47,0.0001726,2]
[359049959,1745675440103,-400.0,0.0001726,2]
[359049960,1745675440113,-412.74,0.0001726,2]
[359049961,1745675440123,-400.0,0.0001726,2]
[359049962,1745675440132,-400.0,0.0001726,2]
[359049963,1745675440142,-400.0,0.0001726,2]
[359049964,1745675440151,-400.0,0.0001726,2]
[359049965,1745675440161,-816.85,0.0001726,2]
[359049966,1745675440170,-1127.57,0.0001726,2]
[359049967,1745675440180,-717.2,0.0001726,2]
[359049968,1745675440190,-400.0,0.0001726,2]
[359049969,1745675440199,-400.0,0.0001726,2]
[359049970,1745675440212,-400.0,0.0001726,2]
[359049971,1745675440222,-1977.92,0.0001726,2]
[359049972,1745675440231,-459.96,0.0001726,2]
[359049973,1745675440243,-419.22,0.0001726,2]
[359049974,1745675440253,-426.74,0.0001726,2]
[359049975,1745675440264,-400.0,0.0001726,2]
[359049976,1745675440275,-400.0,0.0001726,2]
[359049977,1745675440284,-739.18,0.0001726,2]
[359049979,1745675440294,-1240.64,0.0001726,2]
[359049981,1745675440304,-671.19,0.0001726,2]
[359049983,1745675440314,-485.0,0.0001726,2]
[359049985,1745675440324,-400.0,0.0001726,2]
[359049987,1745675440336,-400.0,0.0001726,2]
[359049989,1745675440345,-817.32,0.0001726,2]
[359049991,1745675440355,-611.15,0.0001726,2]
[359049993,1745675440367,-400.0,0.0001726,2]
[359049995,1745675440376,-400.0,0.0001726,2]
[359049997,1745675440386,-850.61,0.0001726,2]
[359049999,1745675440395,-400.0,0.0001726,2]
[359050001,1745675440407,-400.0,0.0001726,2]
[359050003,1745675440417,-400.0,0.0001726,2]
[359050005,1745675440427,-782.46,0.0001726,2]
[359050007,1745675440437,-832.79,0.0001726,2]
[359050009,1745675440446,-400.0,0.0001726,2]
[359050011,1745675440456,-400.0,0.0001726,2]
[359050013,1745675440466,-622.45,0.0001726,2]
[359050015,1745675440475,-400.0,0.0001726,2]
[359050017,1745675440485,-807.25,0.0001726,2]
[359050020,1745675440495,-151.0,0.000175,2]
[359050022,1745675440506,-180.105,0.000175,2]
[359050024,1745675440515,-700.0,0.000175,2]
[359050026,1745675440524,-500.0,0.00017509,2]
[359050028,1745675440533,-520.58,0.00017534,2]
[359050030,1745675440543,-400.0,0.00017534,2]
[359050032,1745675440554,-400.0,0.00017534,2]
[359050034,1745675440563,-400.0,0.00017534,2]
[359050036,1745675440573,-606.47,0.00017534,2]
[359050038,1745675440583,-400.0,0.00017534,2]
[359050040,1745675440593,-412.74,0.00017534,2]
[359050042,1745675440603,-431.45049579,0.00017534,2]
[359050044,1745675440613,-400.0,0.00017534,2]
[359050046,1745675440623,-400.0,0.00017534,2]
[359050048,1745675440632,-400.0,0.00017534,2]
[359050050,1745675440642,-816.85,0.00017534,2]
[359050052,1745675440652,-1127.57,0.00017534,2]
[359050054,1745675440662,-717.2,0.00017534,2]
[359050056,1745675440672,-400.0,0.00017534,2]
[359050058,1745675440682,-400.0,0.00017534,2]
[359050060,1745675440692,-400.0,0.00017534,2]
[359050062,1745675440701,-1977.92,0.00017534,2]
[359050064,1745675440711,-459.96,0.00017534,2]
[359050066,1745675440721,-419.22,0.00017534,2]
[359050068,1745675440731,-426.74,0.00017534,2]
[359050070,1745675440742,-400.0,0.00017534,2]
[359050072,1745675440751,-400.0,0.00017534,2]
[359050074,1745675440761,-739.18,0.00017534,2]
[359050076,1745675440771,-1240.64,0.00017534,2]
[359050077,1745675440780,-671.19,0.00017534,2]
[359050079,1745675440791,-485.0,0.00017534,2]
[359050082,1745675440802,-400.0,0.00017534,2]
[359050084,1745675440812,-400.0,0.00017534,2]
[359050086,1745675440823,-817.32,0.00017534,2]
[359050088,1745675440834,-611.15,0.00017534,2]
[359050090,1745675440843,-400.0,0.00017534,2]
[359050105,1745675440984,-400.0,0.00017534,2]
[359050108,1745675440999,-850.61,0.00017534,2]
[359050110,1745675441009,-400.0,0.00017534,2]
[359050112,1745675441019,-400.0,0.00017534,2]
[359050114,1745675441028,-400.0,0.00017534,2]
[359050116,1745675441037,-782.46,0.00017534,2]
[359050118,1745675441047,-832.79,0.00017534,2]
[359050120,1745675441056,-400.0,0.00017534,2]
[359050122,1745675441065,-622.45,0.00017534,2]
[359050124,1745675441074,-400.0,0.00017534,2]
[359050126,1745675441083,-807.25,0.00017534,2]
[359050128,1745675441093,-500.0,0.00017554,2]
[359050129,1745675441102,-500.0,0.00017554,2]
[359050131,1745675441113,-500.0,0.00017554,2]
[359050134,1745675441123,-500.0,0.00017554,2]
[359050135,1745675441133,-500.0,0.00017554,2]
[359050137,1745675441142,-500.0,0.00017554,2]
[359050140,1745675441152,-500.0,0.00017554,2]
[359050142,1745675441162,-500.0,0.00017554,2]
[359050144,1745675441171,-500.0,0.00017554,2]
[359050146,1745675441181,-500.0,0.00017619,2]
[359050148,1745675441190,-500.0,0.00017619,2]
[359050150,1745675441200,-2560.58915146,0.00017693,2]
[359050151,1745675441209,-61539.91335146,0.00017707,2]
[359050164,1745675441332,-3183.79293138,0.00017707,2]
[359050169,1745675441363,-22.7120407,0.00017707,2]
[359050171,1745675441375,-269.57704133,0.00017707,2]
[359050173,1745675441385,-500.0,0.00017773,2]
[359050175,1745675441395,-168.80988721,0.00017773,2]
[359050177,1745675441405,-159.43466818,0.00017773,2]
[359050179,1745675441416,-500.0,0.00017773,2]
[359050181,1745675441426,-2941.81270528,0.000178,2]
[359050183,1745675441438,-5337.12179462,0.000178,2]
[359050185,1745675441448,-151.0,0.00017808,2]
[359050187,1745675441457,-520.58,0.00017808,2]
[359050189,1745675441468,-400.0,0.00017808,2]
[359050191,1745675441478,-400.0,0.00017808,2]
[359050193,1745675441487,-400.0,0.00017808,2]
[359050195,1745675441497,-606.47,0.00017808,2]
[359050197,1745675441506,-400.0,0.00017808,2]
[359050199,1745675441516,-412.74,0.00017808,2]
[359050201,1745675441526,-400.0,0.00017808,2]
[359050203,1745675441536,-400.0,0.00017808,2]
[359050205,1745675441545,-400.0,0.00017808,2]
[359050207,1745675441555,-816.85,0.00017808,2]
[359050209,1745675441566,-1127.57,0.00017808,2]
[359050211,1745675441576,-717.2,0.00017808,2]
[359050213,1745675441586,-400.0,0.00017808,2]
[359050215,1745675441595,-520.93,0.00017808,2]
[359050217,1745675441605,-400.0,0.00017808,2]
[359050219,1745675441615,-1977.92,0.00017808,2]
[359050221,1745675441626,-459.96,0.00017808,2]
[359050223,1745675441636,-419.22,0.00017808,2]
[359050225,1745675441646,-426.74,0.00017808,2]
[359050227,1745675441656,-400.0,0.00017808,2]
[359050229,1745675441666,-400.0,0.00017808,2]
[359050231,1745675441676,-739.18,0.00017808,2]
[359050233,1745675441686,-1240.64,0.00017808,2]
[359050235,1745675441696,-671.19,0.00017808,2]
[359050237,1745675441706,-485.0,0.00017808,2]
[359050239,1745675441715,-305.65378527,0.00017808,2]
[359050241,1745675441725,-400.0,0.00017808,2]
[359050243,1745675441734,-611.15,0.00017808,2]
[359050245,1745675441744,-817.32,0.00017808,2]
[359050247,1745675441753,-400.0,0.00017808,2]
[359050249,1745675441763,-400.0,0.00017808,2]
[359050251,1745675441773,-850.61,0.00017808,2]
[359050253,1745675441782,-400.0,0.00017808,2]
[359050255,1745675441792,-400.0,0.00017808,2]
[359050257,1745675441801,-400.0,0.00017808,2]
[359050259,1745675441811,-782.46,0.00017808,2]
[359050261,1745675441820,-832.79,0.00017808,2]
[359050263,1745675441830,-400.0,0.00017808,2]
[359050265,1745675441842,-622.45,0.00017808,2]
[359050267,1745675441852,-400.0,0.00017808,2]
[359050269,1745675441862,-807.25,0.00017808,2]
[359050271,1745675441872,-520.58,0.00018082,2]
[359050273,1745675441881,-400.0,0.00018082,2]
[359050275,1745675441890,-400.0,0.00018082,2]
[359050277,1745675441900,-400.0,0.00018082,2]
[359050279,1745675441909,-606.47,0.00018082,2]
[359050281,1745675441919,-400.0,0.00018082,2]
[359050283,1745675441929,-412.74,0.00018082,2]
[359050285,1745675441938,-400.0,0.00018082,2]
[359050287,1745675441948,-400.0,0.00018082,2]
[359050289,1745675441958,-400.0,0.00018082,2]
[359050291,1745675441967,-816.85,0.00018082,2]
[359050293,1745675441977,-1127.57,0.00018082,2]
[359050295,1745675441986,-717.2,0.00018082,2]
[359050297,1745675441996,-400.0,0.00018082,2]
[359050299,1745675442005,-540.80288701,0.00018082,2]
[359050301,1745675442015,-1977.92,0.00018082,2]
[359050303,1745675442024,-459.96,0.00018082,2]
[359050305,1745675442033,-419.22,0.00018082,2]
[359050307,1745675442043,-426.74,0.00018082,2]
[359050309,1745675442052,-400.0,0.00018082,2]
[359050311,1745675442061,-400.0,0.00018082,2]
[359050313,1745675442070,-739.18,0.00018082,2]
[359050315,1745675442080,-1240.64,0.00018082,2]
[359050317,1745675442091,-671.19,0.00018082,2]
[359050319,1745675442100,-485.0,0.00018082,2]
[359050321,1745675442109,-400.0,0.00018082,2]
[359050323,1745675442119,-611.15,0.00018082,2]
[359050325,1745675442129,-817.32,0.00018082,2]
[359050327,1745675442139,-400.0,0.00018082,2]
[359050329,1745675442148,-400.0,0.00018082,2]
[359050331,1745675442158,-850.61,0.00018082,2]
[359050333,1745675442167,-400.0,0.00018082,2]
[359050335,1745675442177,-400.0,0.00018082,2]
[359050337,1745675442186,-400.0,0.00018082,2]
[359050339,1745675442195,-782.46,0.00018082,2]
[359050341,1745675442204,-832.79,0.00018082,2]
[359050343,1745675442213,-400.0,0.00018082,2]
[359050345,1745675442222,-622.45,0.00018082,2]
[359050347,1745675442232,-400.0,0.00018082,2]
[359050349,1745675442242,-807.25,0.00018082,2]
[359050351,1745675442251,-587.0,0.00018285,2]
[359050353,1745675442261,-151.0,0.00018356,2]
[359050355,1745675442270,-520.58,0.00018356,2]
[359050357,1745675442280,-400.0,0.00018356,2]
[359050359,1745675442289,-400.0,0.00018356,2]
[359050361,1745675442299,-400.0,0.00018356,2]
[359050363,1745675442308,-606.47,0.00018356,2]
[359050365,1745675442317,-400.0,0.00018356,2]
[359050367,1745675442328,-412.74,0.00018356,2]
[359050369,1745675442339,-400.0,0.00018356,2]
[359050371,1745675442348,-400.0,0.00018356,2]
[359050373,1745675442357,-400.0,0.00018356,2]
[359050375,1745675442367,-816.85,0.00018356,2]
[359050377,1745675442376,-1127.57,0.00018356,2]
[359050379,1745675442386,-717.2,0.00018356,2]
[359050381,1745675442395,-232.26954444,0.00018356,2]
[359050383,1745675442406,-1977.92,0.00018356,2]
[359050385,1745675442415,-459.96,0.00018356,2]
[359050387,1745675442424,-419.22,0.00018356,2]
[359050389,1745675442434,-426.74,0.00018356,2]
[359050391,1745675442443,-318.31603368,0.00018356,2]
[359050393,1745675442453,-400.0,0.00018356,2]
[359050395,1745675442462,-739.18,0.00018356,2]
[359050397,1745675442471,-1240.64,0.00018356,2]
[359050399,1745675442480,-671.19,0.00018356,2]
[359050401,1745675442489,-485.0,0.00018356,2]
[359050403,1745675442498,-400.0,0.00018356,2]
[359050405,1745675442508,-611.15,0.00018356,2]
[359050407,1745675442517,-817.32,0.00018356,2]
[359050409,1745675442526,-400.0,0.00018356,2]
[359050411,1745675442535,-400.0,0.00018356,2]
[359050413,1745675442545,-850.61,0.00018356,2]
[359050415,1745675442554,-400.0,0.00018356,2]
[359050416,1745675442563,-400.0,0.00018356,2]
[359050418,1745675442572,-400.0,0.00018356,2]
[359050420,1745675442582,-782.46,0.00018356,2]
[359050422,1745675442591,-832.79,0.00018356,2]
[359050424,1745675442603,-400.0,0.00018356,2]
[359050427,1745675442613,-622.45,0.00018356,2]
[359050429,1745675442623,-400.0,0.00018356,2]
[359050430,1745675442634,-807.25,0.00018356,2]
[359050432,1745675442644,-2560.58915146,0.00018486,2]
[359050435,1745675442654,-700.0,0.000185,3]
[359050437,1745675442664,-160.0,0.00018553,3]
[359050439,1745675442676,-151.0,0.0001863,2]
[359050441,1745675442686,-520.58,0.0001863,2]
[359050442,1745675442695,-400.0,0.0001863,2]
[359050445,1745675442705,-400.0,0.0001863,2]
[359050447,1745675442715,-400.0,0.0001863,2]
[359050449,1745675442724,-606.47,0.0001863,2]
[359050450,1745675442734,-400.0,0.0001863,2]
[359050452,1745675442743,-412.74,0.0001863,2]
[359050454,1745675442753,-314.11450802,0.0001863,2]
[359050456,1745675442762,-400.0,0.0001863,2]
[359050458,1745675442772,-400.0,0.0001863,2]
[359050460,1745675442781,-816.85,0.0001863,2]
[359050462,1745675442791,-1127.57,0.0001863,2]
[359050464,1745675442800,-717.2,0.0001863,2]
[359050467,1745675442810,-1977.92,0.0001863,2]
[359050469,1745675442820,-459.96,0.0001863,2]
[359050471,1745675442830,-419.22,0.0001863,2]
[359050473,1745675442839,-426.74,0.0001863,2]
[359050475,1745675442849,-400.0,0.0001863,2]
[359050477,1745675442859,-739.18,0.0001863,2]
[359050478,1745675442869,-1240.64,0.0001863,2]
[359050480,1745675442879,-671.19,0.0001863,2]
[359050482,1745675442888,-485.0,0.0001863,2]
[359050484,1745675442898,-400.0,0.0001863,2]
[359050486,1745675442908,-611.15,0.0001863,2]
[359050488,1745675442918,-817.32,0.0001863,2]
[359050490,1745675442929,-400.0,0.0001863,2]
[359050492,1745675442939,-315.11978206,0.0001863,2]
[359050494,1745675442949,-850.61,0.0001863,2]
[359050496,1745675442958,-400.0,0.0001863,2]
[359050498,1745675442968,-400.0,0.0001863,2]
[359050500,1745675442977,-400.0,0.0001863,2]
[359050503,1745675442987,-782.46,0.0001863,2]
[359050505,1745675442996,-832.79,0.0001863,2]
[359050507,1745675443006,-400.0,0.0001863,2]
[359050508,1745675443015,-622.45,0.0001863,2]
[359050510,1745675443025,-400.0,0.0001863,2]
[359050512,1745675443034,-807.25,0.0001863,2]
[359050514,1745675443043,-11739.01269979,0.000189,2]
[359050516,1745675443052,-151.0,0.00018904,2]
[359050518,1745675443062,-520.58,0.00018904,2]
[359050520,1745675443072,-400.0,0.00018904,2]
[359050522,1745675443082,-400.0,0.00018904,2]
[359050525,1745675443092,-400.0,0.00018904,2]
[359050526,1745675443102,-606.47,0.00018904,2]
[359050528,1745675443112,-400.0,0.00018904,2]
[359050530,1745675443121,-412.74,0.00018904,2]
[359050532,1745675443131,-400.0,0.00018904,2]
[359050534,1745675443140,-400.0,0.00018904,2]
[359050536,1745675443149,-816.85,0.00018904,2]
[359050538,1745675443160,-1127.57,0.00018904,2]
[359050540,1745675443169,-717.2,0.00018904,2]
[359050542,1745675443179,-1977.92,0.00018904,2]
[359050544,1745675443188,-459.96,0.00018904,2]
[359050546,1745675443197,-419.22,0.00018904,2]
[359050548,1745675443207,-426.74,0.00018904,2]
[359050550,1745675443217,-400.0,0.00018904,2]
[359050552,1745675443226,-739.18,0.00018904,2]
[359050554,1745675443235,-1240.64,0.00018904,2]
[359050556,1745675443244,-671.19,0.00018904,2]
[359050558,1745675443254,-485.0,0.00018904,2]
[359050560,1745675443264,-400.0,0.00018904,2]
[359050562,1745675443273,-611.15,0.00018904,2]
[359050564,1745675443282,-817.32,0.00018904,2]
[359050566,1745675443291,-400.0,0.00018904,2]
[359050568,1745675443300,-850.61,0.00018904,2]
[359050570,1745675443310,-400.0,0.00018904,2]
[359050572,1745675443319,-400.0,0.00018904,2]
[359050575,1745675443331,-400.0,0.00018904,2]
[359050576,1745675443340,-782.46,0.00018904,2]
[359050579,1745675443350,-832.79,0.00018904,2]
[359050580,1745675443359,-400.0,0.00018904,2]
[359050583,1745675443370,-622.45,0.00018904,2]
[359050585,1745675443379,-473.15005381,0.00018904,2]
[359050586,1745675443388,-807.25,0.00018904,2]
[359050589,1745675443398,-151.0,0.00019,2]
[359050591,1745675443408,-160.0,0.00019002,4]
[359050593,1745675443418,-151.0,0.00019178,2]
[359050595,1745675443428,-520.58,0.00019178,2]
[359050597,1745675443437,-400.0,0.00019178,2]
[359050598,1745675443446,-269.90489522,0.00019178,2]
[359050600,1745675443455,-400.0,0.00019178,2]
[359050602,1745675443465,-606.47,0.00019178,2]
[359050604,1745675443475,-400.0,0.00019178,2]
[359050606,1745675443485,-412.74,0.00019178,2]
[359050608,1745675443494,-400.0,0.00019178,2]
[359050610,1745675443504,-400.0,0.00019178,2]
[359050613,1745675443513,-816.85,0.00019178,2]
[359050615,1745675443523,-1127.57,0.00019178,2]
[359050616,1745675443532,-717.2,0.00019178,2]
[359050618,1745675443542,-1977.92,0.00019178,2]
[359050620,1745675443551,-459.96,0.00019178,2]
[359050622,1745675443561,-419.22,0.00019178,2]
[359050624,1745675443570,-426.74,0.00019178,2]
[359050626,1745675443580,-400.0,0.00019178,2]
[359050628,1745675443589,-1240.64,0.00019178,2]
[359050630,1745675443599,-739.18,0.00019178,2]
[359050632,1745675443608,-671.19,0.00019178,2]
[359050634,1745675443619,-485.0,0.00019178,2]
[359050636,1745675443628,-236.26062676,0.00019178,2]
[359050638,1745675443637,-611.15,0.00019178,2]
[359050640,1745675443646,-817.32,0.00019178,2]
[359050642,1745675443656,-400.0,0.00019178,2]
[359050644,1745675443665,-850.61,0.00019178,2]
[359050646,1745675443675,-400.0,0.00019178,2]
[359050648,1745675443685,-400.0,0.00019178,2]
[359050650,1745675443694,-360.77058503,0.00019178,2]
[359050652,1745675443703,-782.46,0.00019178,2]
[359050654,1745675443713,-832.79,0.00019178,2]
[359050656,1745675443722,-400.0,0.00019178,2]
[359050658,1745675443731,-622.45,0.00019178,2]
[359050660,1745675443741,-807.25,0.00019178,2]
[359050662,1745675443750,-151.0,0.00019178,2]
[359050664,1745675443760,-300.0,0.00019178,2]
[359050666,1745675443769,-156.587,0.00019233,2]
[359050668,1745675443779,-2560.58915146,0.00019279,2]
[359050670,1745675443789,-162.380719,0.00019288,2]
[359050672,1745675443798,-300.92831777,0.00019289,2]
[359050674,1745675443808,-100000.0,0.00019329,2]
[359050676,1745675443818,-168.3888056,0.00019343,2]
[359050678,1745675443828,-174.61919141,0.00019398,2]
[359050680,1745675443837,-520.58,0.00019452,2]
[359050681,1745675443982,-400.0,0.00019452,2]
[359050682,1745675443993,-400.0,0.00019452,2]
[359050683,1745675444003,-606.47,0.00019452,2]
[359050684,1745675444013,-400.0,0.00019452,2]
[359050685,1745675444024,-412.74,0.00019452,2]
[359050686,1745675444034,-400.0,0.00019452,2]
[359050687,1745675444043,-400.0,0.00019452,2]
[359050688,1745675444052,-816.85,0.00019452,2]
[359050689,1745675444060,-1127.57,0.00019452,2]
[359050690,1745675444068,-717.2,0.00019452,2]
[359050691,1745675444076,-1977.92,0.00019452,2]
[359050692,1745675444085,-459.96,0.00019452,2]
[359050693,1745675444092,-419.22,0.00019452,2]
[359050694,1745675444101,-426.74,0.00019452,2]
[359050695,1745675444109,-400.0,0.00019452,2]
[359050696,1745675444119,-1240.64,0.00019452,2]
[359050697,1745675444127,-739.18,0.00019452,2]
[359050698,1745675444135,-671.19,0.00019452,2]
[359050699,1745675444145,-485.0,0.00019452,2]
[359050700,1745675444155,-611.15,0.00019452,2]
[359050701,1745675444165,-817.32,0.00019452,2]
[359050702,1745675444175,-400.0,0.00019452,2]
[359050703,1745675444184,-850.61,0.00019452,2]
[359050704,1745675444194,-400.0,0.00019452,2]
[359050705,1745675444203,-400.0,0.00019452,2]
[359050706,1745675444213,-782.46,0.00019452,2]
[359050707,1745675444222,-832.79,0.00019452,2]
[359050708,1745675444232,-400.0,0.00019452,2]
[359050709,1745675444241,-622.45,0.00019452,2]
[359050711,1745675444251,-807.25,0.00019452,2]
[359050713,1745675444260,-160.0,0.00019452,5]
[359050714,1745675444270,-181.08010149,0.00019453,2]
[359050715,1745675444280,-502.04020036,0.000195,2]
[359050716,1745675444290,-820.0,0.000195,4]
[359050717,1745675444299,-187.78006525,0.00019508,2]
[359050718,1745675444309,-194.72792766,0.00019563,2]
[359050719,1745675444318,-201.93286099,0.00019618,2]
[359050720,1745675444330,-300.92831777,0.00019665,2]
[359050722,1745675444341,-209.40437684,0.00019673,2]
[359050724,1745675444351,-181.23524,0.00019726,2]
[359050726,1745675444360,-520.58,0.00019726,2]
[359050728,1745675444370,-400.0,0.00019726,2]
[359050731,1745675444380,-400.0,0.00019726,2]
[359050733,1745675444391,-606.47,0.00019726,2]
[359050735,1745675444401,-371.06199856,0.00019726,2]
[359050736,1745675444411,-412.74,0.00019726,2]
[359050737,1745675444421,-199.45839168,0.00019726,2]
[359050738,1745675444431,-400.0,0.00019726,2]
[359050739,1745675444440,-816.85,0.00019726,2]
[359050740,1745675444450,-1127.57,0.00019726,2]
[359050741,1745675444459,-717.2,0.00019726,2]
[359050742,1745675444469,-1977.92,0.00019726,2]
[359050743,1745675444479,-459.96,0.00019726,2]
[359050744,1745675444488,-419.22,0.00019726,2]
[359050745,1745675444498,-426.74,0.00019726,2]
[359050746,1745675444508,-400.0,0.00019726,2]
[359050747,1745675444517,-1240.64,0.00019726,2]
[359050748,1745675444527,-739.18,0.00019726,2]
[359050749,1745675444536,-671.19,0.00019726,2]
[359050750,1745675444546,-485.0,0.00019726,2]